Cogmind - Beta 11.1 @@@ ROGUE MODE // 2022.06.20 @ 19:25:13 Player: Demise Result: Destroyed by H-55 Commando with Assault Rifle Performance ------------- Evolutions (2) 1000 Regions Visited (3) 600 Robots Destroyed (29) 145 Value Destroyed (390) 390 Prototype IDs (1) 20 Alien Tech Used (0) 0 Bonus (6) 6 TOTAL SCORE: 2161 Bonus ------- High Alert Combat Kills 6 Cogmind --------- Core Integrity 0/550 Matter 265/300 Energy 40/100 System Corruption 0% Temperature Cool (0) Movement Core (50) Location -8/Materials Parts ------- > --- POWER (1) -------- (None) > --- PROPULSION (4) --- (None) > --- UTILITY (4) ------ Improved Signal Interpreter Transport Network Coupler > --- WEAPON (2) ------- (None) > --- INVENTORY (5) ---- (None) Peak State ------------ > --- POWER ------------ Light Deuterium Engine > --- PROPULSION ------- Flight Unit Flight Unit Flight Unit > --- UTILITY ---------- Improved Sensor Array Hacking Suite System Shield System Shield > --- WEAPON ----------- Heavy Assault Rifle Katana > --- INVENTORY -------- Improved Signal Interpreter Transport Network Coupler Medium Armor Plating System Shield System Shield [Rating: 24] Favorites ----------- Power Light Deuterium Engine Engine Light Deuterium Engine Propulsion Flight Unit Flight Unit Flight Unit Utility System Shield Device Improved Sensor Array Processor Improved Targeting Computer Hackware System Shield Weapon Assault Rifle Ballistic Gun Assault Rifle Launcher Improved Grenade Launcher Impact Weapon Maul Slashing Weapon Katana Build | -11 -10 -9 -8 ------- Run | Scr Mat Mat Mat Slots Evolved 4 | . . 2 2 Power . | . . . . Propulsion 2 | . . 2 . Utility 2 | . . . 2 Weapon . | . . . . Parts Attached 34 | 2 3 17 12 Power 2 | . . 2 . Engine 2 | . . 2 . Core . | . . . . Reactor . | . . . . Propulsion 10 | . 3 6 1 Treads . | . . . . Leg . | . . . . Wheel . | . . . . Hover . | . . . . Flight 10 | . 3 6 1 Utility 10 | . . 4 6 Device 1 | . . . 1 Storage . | . . . . Processor 4 | . . 2 2 Hackware 5 | . . 2 3 Protection . | . . . . Artifact . | . . . . Weapon 12 | 2 . 5 5 Energy Gun . | . . . . Energy Cannon . | . . . . Ballistic Gun 8 | 2 . 4 2 Ballistic Cannon . | . . . . Launcher 2 | . . 1 1 Special Weapon . | . . . . Impact Weapon 1 | . . . 1 Slashing Weapon 1 | . . . 1 Piercing Weapon . | . . . . Special Melee Weapon . | . . . . Unidentified Prototypes 1 | . . 1 . Parts Lost 14 | . . 3 11 Power 1 | . . . 1 Propulsion 8 | . . 3 5 Utility 2 | . . . 2 Weapon 3 | . . . 3 Highest Loss Streak 7 | . . 2 7 To Critical Strikes . | . . . . Average Slot Usage (%) 68 | . 42 91 76 Engine 5 | . . 8 6 Flight 26 | . 14 40 26 Device 1 | . . . 3 Processor 3 | . . 9 . Hackware 10 | . . 9 23 Ballistic Gun 20 | . 28 22 11 Slashing Weapon 1 | . . . 3 Naked Turns 4 | . . . 4 Heaviest Build 13 | 4 4 13 12 Greatest Support 16 | 3 8 16 16 Greatest Overweight (x) 1 | 1 1 1 1 Average Overweight (x) . | . . . . Largest Inventory Capacity 5 | 5 5 5 5 Average Capacity 5 | 5 5 5 5 Most Carried 5 | 1 5 5 5 Average Carried 3 | . 1 4 4 Final Capacity 5 | 5 5 5 5 Final Carried 5 | 1 5 5 . Class Distribution -------------------- 39% | Mutant 30% | Scavenger-Sprinter 15% | Hacker-Mutant 14% | Scavenger-Mutant Dominant Class ---------------- Mutant | -10/Materials Scavenger-Sprinter | -9/Materials Hacker-Mutant | -8/Materials Resources | -11 -10 -9 -8 ----------- Run | Scr Mat Mat Mat Matter Collected 894 | 226 78 175 415 Remotely . | . . . . Salvage Created 555 | 23 111 231 190 Parts 52 | 1 16 22 13 Haulers Intercepted 3 | . . 1 2 Recyclers Shooed 1 | . . 1 . Parts Field Recycled . | . . . . Retrieved Matter . | . . . . Parts Self-Destructed . | . . . . Prevented . | . . . . Kills | -11 -10 -9 -8 ------- Run | Scr Mat Mat Mat Combat Hostiles Destroyed 15 | . 5 8 2 Guns 11 | . 5 5 1 AOE 4 | . . 3 1 Classes Destroyed 9 | 1 3 4 1 Worker 2 | . . 1 1 Builder 1 | . . . 1 Tunneler 2 | 1 . 1 . Hauler 3 | . . 1 2 Operator 3 | . 1 1 1 Watcher 3 | . 1 . 2 Swarmer 13 | . 5 6 2 Grunt 1 | . . 1 . Sentry 1 | . . 1 . Best Kill Streak 4 | 1 3 3 4 Combat Bots Only 3 | . 3 3 2 Max Kills in Single Turn 2 | 1 1 2 2 Gunslinging . | . . . . Exploded 2 | . . 2 1 Melee . | . . . . Uniques/NPCs Destroyed . | . . . . Combat | -11 -10 -9 -8 -------- Run | Scr Mat Mat Mat Damage Taken 1391 | . 126 311 954 Core 649 | . 33 66 550 Absorbed by Shields . | . . . . Core Remaining (%) 89 | 100 86 83 . Volleys Fired 79 | 1 32 32 14 Largest 2 | 2 2 2 2 Hottest 43 | 40 40 43 43 Shots Fired 152 | 2 64 62 24 Gun 147 | 2 64 60 21 Cannon . | . . . . Launcher 5 | . . 2 3 Special . | . . . . Kinetic 147 | 2 64 60 21 Thermal . | . . . . Explosive 5 | . . 2 3 Electromagnetic . | . . . . Robot Hit Streak 8 | 2 6 8 4 Robot Miss Streak 4 | . 3 3 4 Penetration Max . | . . . . Secondary Targets . | . . . . Shots Hit Robots 93 | 2 37 37 17 Core Hits 43 | 1 10 15 17 Critical Kills . | . . . . Critical Parts Destroyed 3 | . 2 1 . Critical Strikes 3 | . 2 1 . Destroy 3 | . 2 1 . Melee Attacks 8 | . . . 8 Impact 1 | . . . 1 Slashing 7 | . . . 7 Piercing . | . . . . Sneak Attacks 1 | . . . 1 Combat Hostiles . | . . . . Follow-up Attacks . | . . . . Damage Inflicted 2079 | 29 496 729 825 Guns 1121 | 29 496 495 101 Cannons . | . . . . Explosions 712 | . . 234 478 Melee 246 | . . . 246 Ramming . | . . . . Kinetic 1121 | 29 496 495 101 Thermal . | . . . . Explosive 712 | . . 234 478 Electromagnetic . | . . . . Impact 46 | . . . 46 Slashing 200 | . . . 200 Piercing . | . . . . Highest Corruption . | . . . . Average Corruption . | . . . . Corruption Purged . | . . . . Corruption Blocked . | . . . . Overload Shots . | . . . . Overflow Damage 90 | . . 64 26 Projectiles . | . . . . Explosions 81 | . . 64 17 Melee 9 | . . . 9 Knockbacks 1 | . . . 1 Impact 1 | . . . 1 Kinetic . | . . . . Secondary . | . . . . Self-Inflicted Damage 55 | . . . 55 Shots 1 | . . . 1 Rammed . | . . . . Targets Rammed . | . . . . Kicked . | . . . . Crushed . | . . . . Highest Temperature 16 | . . 16 6 Average Temperature 4 | . . 5 2 Received Heat Transfer 390 | . 18 93 279 Siege Activations . | . . . . Robots Corrupted . | . . . . Combat Hostiles . | . . . . Parts Fried . | . . . . Impact Corruptions . | . . . . Robots Melted . | . . . . Combat Hostiles . | . . . . Parts Melted . | . . . . Heat Transferred . | . . . . Parts Sabotaged . | . . . . Parts Stolen . | . . . . Parts Stripped . | . . . . Power Chain Reactions . | . . . . Missiles Intercepted . | . . . . Alert | -11 -10 -9 -8 ------- Run | Scr Mat Mat Mat Peak Influence 591 | 5 387 513 591 Initial 216 | . 3 163 216 Average 270 | . 139 329 396 Maximum Alert Level 2 | . 1 2 2 Low Security (%) 36 | 100 74 17 3 Level 1 36 | . 25 48 42 Level 2 26 | . . 34 53 Level 3 . | . . . . Level 4 . | . . . . Level 5 . | . . . . High Security . | . . . . Max Security . | . . . . Squads Dispatched 7 | . 1 1 5 Investigation 2 | . 1 . 1 Extermination . | . . . . Reinforcement 2 | . . 1 1 Assault . | . . . . Garrison 3 | . . . 3 Intercept . | . . . . Searches Triggered . | . . . . Construction Impeded . | . . . . Haulers Reinforced . | . . . . Active Scanning Responses . | . . . . Cargo Convoy Interrupts . | . . . . Stealth | -11 -10 -9 -8 --------- Run | Scr Mat Mat Mat Distress Signals 7 | . 2 1 4 Communications Jammed . | . . . . Distress Signals . | . . . . Times Spotted 71 | . 23 20 28 Peak Tracking Total 12 | . 9 7 12 Tactical Retreats 10 | . 4 2 4 Traps | -11 -10 -9 -8 ------- Run | Scr Mat Mat Mat Traps Triggered . | . . . . Indirectly . | . . . . Trap Hack Attempts . | . . . . Triggered . | . . . . Disarmed . | . . . . Reprogrammed . | . . . . Reused . | . . . . Traps Extracted . | . . . . Installed . | . . . . Triggered . | . . . . Machines | -11 -10 -9 -8 ---------- Run | Scr Mat Mat Mat Machines Disabled 4 | . . . 4 Max in Single Turn 2 | . . . 2 Machines Sabotaged . | . . . . Garrisons Compromised . | . . . . Overloaded Fab Kills . | . . . . Hacking | -11 -10 -9 -8 --------- Run | Scr Mat Mat Mat Machines Accessed 8 | . 6 1 1 Terminals 7 | . 6 1 . Fabricators . | . . . . Repair Stations . | . . . . Recycling Units . | . . . . Scanalyzers . | . . . . Garrison Access 1 | . . . 1 Total Hacks 24 | . 19 2 3 Successful 12 | . 8 2 2 Failed 11 | . 10 . 1 Catastrophic 2 | . 2 . . Database Lockouts 1 | . 1 . . Manual 23 | . 18 2 3 Terminals 21 | . 19 2 . Fabricators . | . . . . Repair Stations . | . . . . Recycling Units . | . . . . Scanalyzers . | . . . . Garrison Access 3 | . . . 3 Terminal Hacks 5 | . 4 1 . Robot Analysis 3 | . 2 1 . Terminal Index 1 | . 1 . . Zone Layout 1 | . 1 . . Fabricator Hacks . | . . . . Repair Station Hacks . | . . . . Recycling Unit Hacks . | . . . . Scanalyzer . | . . . . Garrison Access Hacks . | . . . . Unauthorized Hacks 7 | . 4 1 2 Terminals 5 | . 4 1 . Botnet 5 | . 4 1 . Fabricators . | . . . . Repair Stations . | . . . . Recycling Units . | . . . . Scanalyzers . | . . . . Garrison Access 2 | . . . 2 Reprogram 1 | . . . 1 Watchers 1 | . . . 1 Data Cores Recovered 2 | . 1 1 . Used 2 | . 1 1 . Hacking Detections 7 | . 6 1 . Full Trace Events 1 | . 1 . . Feedback Events . | . . . . Feedback Blocked . | . . . . Robot Schematics Acquired . | . . . . Robots Built . | . . . . Authchips . | . . . . Time . | . . . . Total Robot Build Rating . | . . . . Part Schematics Acquired . | . . . . Parts Built . | . . . . Authchips . | . . . . Time . | . . . . Total Part Build Rating . | . . . . Parts Repaired . | . . . . Time . | . . . . Parts Recycled . | . . . . Recycled Matter . | . . . . Retrieved Matter . | . . . . Retrieved Components . | . . . . Parts Scanalyzed . | . . . . Part Schematics Acquired . | . . . . Parts Damaged . | . . . . Bothacking | -11 -10 -9 -8 ------------ Run | Scr Mat Mat Mat Used RIF Installer . | . . . . Robots Hacked . | . . . . Non-combat . | . . . . Combat . | . . . . Robot Hacks Applied . | . . . . Relay Couplers Released . | . . . . Fabnet Peak Effective % . | . . . . Robots Rewired . | . . . . Allies Hacked . | . . . . Hacks Repelled . | . . . . Allies | -11 -10 -9 -8 -------- Run | Scr Mat Mat Mat Total Allies 2 | . . . 2 Largest Group 2 | . . . 2 Highest-Rated Group 32 | . . . 32 Highest-Rated Ally 16 | . . . 16 Total Orders . | . . . . Ally Attacks 6 | . . . 6 Total Damage 49 | . . . 49 Kills . | . . . . Allies Corrupted . | . . . . Allies Melted . | . . . . Intel | -11 -10 -9 -8 ------- Run | Scr Mat Mat Mat Robot Analysis Total 3 | . 2 1 . Derelict Logs Recovered . | . . . . Drone Launches . | . . . . Drone Recoveries . | . . . . Exploration | -11 -10 -9 -8 ------------- Run | Scr Mat Mat Mat Turns Passed 835 | 32 295 247 261 Spaces Moved 1171 | 29 303 363 476 Core 157 | 29 110 . 18 Treads . | . . . . Legs . | . . . . Wheels . | . . . . Hover . | . . . . Flight 1014 | . 193 363 458 Fastest Speed 31 | 50 37 31 31 Average Speed 41 | 86 60 32 34 Slowest Speed 117 | 100 100 117 115 Overloaded Moves . | . . . . Propulsion Burnouts . | . . . . Robots Hopped 15 | . 3 4 8 Cave-ins Triggered . | . . . . Exploration Rate (%) 36 | 3 46 40 58 Regions Visited 3 Branch Regions . Pre-discovered Areas . | . . . . Known Exits Taken . | . . . . Unknown Exits Taken 3 | 1 1 1 . Scrap Searched . | . . . . Spaces Dug 1 | . . . 1 Terrain Destroyed 75 | . . 16 59 Melee 1 | . . . 1 Projectile . | . . . . AOE 74 | . . 16 58 Terrain Rammed . | . . . . Walls Destroyed . | . . . . Machines Disabled . | . . . . Actions | -11 -10 -9 -8 --------- Run | Scr Mat Mat Mat Total 1336 | 32 348 429 527 Wait 24 | . 4 3 17 Move 1140 | 28 297 355 460 Hop 13 | . 2 3 8 Pick Up 17 | 1 7 7 2 Fast Attach 23 | 2 2 9 10 Attach 3 | . . 2 1 Detach 2 | . . 2 . Swap 8 | . 1 6 1 Drop 20 | . 3 10 7 Fire 79 | 1 32 32 14 Melee 7 | . . . 7 Ram . | . . . . Kick . | . . . . Crush . | . . . . Escape Stasis . | . . . . Rewire . | . . . . Trap . | . . . . Miscellaneous . | . . . . Route ------- -11/Scrapyard -10/Materials (discovered 2 exits: *Mat / [Min]) -9/Materials (discovered 2 exits: *Mat / [*Min]) -8/Materials History --------- Turn | Location | Event 4 | -11/Scrapyard | Discovered new exit (range 16) 33 | -11/Scrapyard | Entered Materials 88 | -10/Materials | Discovered new exit (range 17) 88 | -10/Materials | Central database locked down 247 | -10/Materials | Discovered new exit (range 16) 309 | -10/Materials | Build established: Mutant 328 | -10/Materials | Entered another Materials area 328 | -9/Materials | Evolved 2 slots: Propulsion x2 422 | -9/Materials | Discovered new exit (range 15) 574 | -9/Materials | Discovered new exit (range 5) 575 | -9/Materials | Entered another Materials area 575 | -8/Materials | Evolved 2 slots: Utility x2 630 | -8/Materials | Garrison activated, responded to threat 820 | -8/Materials | Released all parts (6) 825 | -8/Materials | Core integrity fell below 50% 828 | -8/Materials | Core integrity fell below 20% 836 | -8/Materials | Destroyed by H-55 Commando with Assault Rifle Last Messages --------------- 00802_ Flight Unit destroyed. 00803_ Acquired Maul. 00808_ S-10 Pest knocked back. 00812_ Flight Unit destroyed. 00816_ Cesium-ion Thruster destroyed. 00820_ Released Katana. 00820_ Released System Shield. 00820_ Released Hacking Suite. 00820_ Released Imp. Sensor Array. 00820_ Released Maul. 00820_ Dropped Imp. Signal Interpreter. 00821_ Dropped Transport Network Coupler. 00821_ Dropped Med. Armor Plating. 00822_ Dropped System Shield. 00824_ Acquired System Shield. 00824_ Critical hit (Burn: +37). 00826_ Acquired Imp. Signal Interpreter. 00828_ Acquired System Shield. 00830_ Acquired Transport Network Coupler. 00832_ System Shield destroyed. Map ----- +----------------------------------------------------+ | ##+###############???????????????????????????????? | | #??????????????????????????????????????? | | """ """ #??????????????????????????????????????? | | """ """ #??????????????????????????????????????? | | """ """ ???????????????????????????????????????? | | ?????????????a?????????????????????????? | | ???????????????????????????????????????? | | ???????????????????????????????????????? | | ##########???????????????????????????????????????? | | ?????????????????????????????????????????????????? | | ?????????????????????????????????????????????????? | | ?????????????????????????????????????????????????? | | ?????????????????????????????????????????????????? | | ???????????????????? ????????????????????????????? | | ???????????????????? ????????????????????????????? | | ???????????????????? #???????????????????????????? | | ???????????????????# #???????????????????????????? | | ??????????????????## ##???#######????????????????? | | ################### ###? [[[ !????????????????? | | +? [[ ?????????????????? | | ########## ##??? [[ ?????????????????? | | ?????????# ;#???? ??????????????????? | | ?????????# ;##??? ??????????????????? | | ########## ;;#####+#########??????????? | | g l a ???? | | g @ /!#########??????????? | | h g / #??????????????????? | | " [g s ! #??????????????????? | | #######+## "" gs #??????????????????? | | ??#] #####;;;;;; s #??????????????????? | | ## [ #?# ;s #??????????????????? | | ## #?#""" # ### #??????????????????? | | ## "T" #?#"Y !#####?# #????????????????? | | ##! """ #?#""" #?????#**!!//#????????????????? | | ## #?# !#?????#**!!//#????????????????? | | #########?########??????########????????????????? | | #????????????????????????????????????????????????? | | | | | | | | | | | | | | | | | | | | | | | | | | | +----------------------------------------------------+ Best States ------------- Heat Dissipation 31 Energy Generation 14 Energy Capacity 280 Matter Stores 300 Matter Capacity 300 Sight Range 16 Robot Scan Range 15 Terrain Scan Density 10 Evasion (%) 63 Targeting Accuracy 12 Offensive Hacking 10 Defensive Hacking 20 Item Schematics ----------------- None Robot Schematics ------------------ None Fabricated ------------ Nothing Alien Tech Used ----------------- None Achievements -------------- None Challenges ------------ None Game ------ Seed FortressTerrainClaymores Manual? 0 Play Time 00:19:59 Cumulative 626.0 hours Start 2022.06.20 @ 19:10:44 End 2022.06.20 @ 19:25:13 Sessions 1 Manual Loads 0 Difficulty Rogue Special Mode None Game No. 501 Rogue 501 Adventurer 0 Explorer 0 Win Type - Total 8 Types 7/0/0/1/0/0/0/0/0 Lore% 74 Gallery% 85 Achievement% 68 Wizard Run 0 Options --------- ASCII 0 Keyboard 1 Movement Numpad Keybinds 0 Fullscreen 1 Font 12/Terminus Map View 83x54 Tactical HUD 1 Map Filters NONE Filters NONE Steam 1 RUN: dfadad23-7a77-420d-9418-20542f6c1d8d